[Event "*** Titled Tuesday Blitz"]
[Site "Chess.com"]
[Date "2019.10.01"]
[Round "8"]
[White "Tjktiger"]
[Black "Rodalquilar"]
[Result "0-1"]
[WhiteElo "2806"]
[BlackElo "2668"]
[TimeControl "180+2"]
[EndTime "15:03:25 PDT"]
[Termination "Rodalquilar won by resignation"]

1. c4 {[%clk 0:03:01.8]} 1... b6 {[%clk 0:03:00.2]} 2. Nc3 {[%clk 0:03:02.9]}
2... Bb7 {[%clk 0:03:00.7]} 3. d4 {[%clk 0:03:04.2]} 3... e6 {[%clk 0:03:01.7]}
4. e4 {[%clk 0:03:04.6]} 4... Bb4 {[%clk 0:03:02.3]} 5. f3 {[%clk 0:03:06.2]}
5... f5 {[%clk 0:03:02.4]} 6. exf5 {[%clk 0:03:07.2]} 6... Nh6 {[%clk
0:03:03.5]} 7. fxe6 {[%clk 0:03:08.2]} 7... Nf5 {[%clk 0:03:04.8]} 8. Ne2 {[%clk
0:03:06.5]} 8... O-O {[%clk 0:02:57.6]} 9. Qd3 {[%clk 0:03:06.9]} 9... dxe6
{[%clk 0:02:52.6]} 10. Be3 {[%clk 0:03:06.2]} 10... e5 {[%clk 0:02:44.7]} 11.
O-O-O {[%clk 0:02:55.9]} 11... Nxe3 {[%clk 0:02:43.4]} 12. Qxe3 {[%clk
0:02:56.3]} 12... exd4 {[%clk 0:02:35.7]} 13. Nxd4 {[%clk 0:02:54.4]} 13... Bc5
{[%clk 0:02:15.7]} 14. Ne4 {[%clk 0:02:24.7]} 14... Re8 {[%clk 0:02:11.3]} 15.
Qc3 {[%clk 0:01:47.8]} 15... Bxe4 {[%clk 0:01:18.9]} 16. fxe4 {[%clk 0:01:37.5]}
16... Rxe4 {[%clk 0:01:20.8]} 17. Ne6 {[%clk 0:00:39.4]} 17... Qxd1+ {[%clk
0:00:53.6]} 18. Kxd1 {[%clk 0:00:40.1]} 18... Rxe6 {[%clk 0:00:55.5]} 19. Qh3
{[%clk 0:00:33.8]} 19... Rd6+ {[%clk 0:00:50.8]} 20. Bd3 {[%clk 0:00:34.6]}
20... Nd7 {[%clk 0:00:42.5]} 21. Qxh7+ {[%clk 0:00:30.8]} 21... Kf7 {[%clk
0:00:43.7]} 22. Kc2 {[%clk 0:00:22.3]} 22... Rd8 {[%clk 0:00:17.3]} 23. Rf1+
{[%clk 0:00:18.6]} 23... Nf6 {[%clk 0:00:18.8]} 24. Bg6+ {[%clk 0:00:17.7]}
24... Ke6 {[%clk 0:00:20.4]} 25. Qxg7 {[%clk 0:00:16.9]} 25... Rd2+ {[%clk
0:00:21.2]} 26. Kc1 {[%clk 0:00:14.4]} 26... Bd4 {[%clk 0:00:14.1]} 27. Qf7+
{[%clk 0:00:11.7]} 27... Kd6 {[%clk 0:00:14.5]} 28. Kxd2 {[%clk 0:00:12.2]}
28... Kc5 {[%clk 0:00:16.1]} 29. Kc2 {[%clk 0:00:12.4]} 29... Ng4 {[%clk
0:00:15.1]} 30. Rf5+ {[%clk 0:00:11.6]} 30... Kc6 {[%clk 0:00:12.4]} 31. Rf3
{[%clk 0:00:07.8]} 31... Ne5 {[%clk 0:00:13.1]} 32. Qe6+ {[%clk 0:00:08.9]}
32... Rd6 {[%clk 0:00:14.5]} 33. Be4+ {[%clk 0:00:08.7]} 33... Kc5 {[%clk
0:00:14.8]} 34. Rf5 {[%clk 0:00:07.5]} 34... Rxe6 {[%clk 0:00:12.6]} 35. b3
{[%clk 0:00:08.2]} 35... Kd6 {[%clk 0:00:12.7]} 36. h3 {[%clk 0:00:08.3]} 36...
Bc5 {[%clk 0:00:13.5]} 37. Bd5 {[%clk 0:00:08.4]} 37... Rg6 {[%clk 0:00:14]} 38.
g4 {[%clk 0:00:09.4]} 38... c6 {[%clk 0:00:15.2]} 39. Bg2 {[%clk 0:00:10.3]}
39... Bd4 {[%clk 0:00:15.8]} 40. g5 {[%clk 0:00:09.1]} 40... Ke6 {[%clk
0:00:12.3]} 41. Be4 {[%clk 0:00:10]} 41... Rg8 {[%clk 0:00:08.9]} 42. Rf6+
{[%clk 0:00:11.1]} 42... Ke7 {[%clk 0:00:09.5]} 43. h4 {[%clk 0:00:12.5]} 43...
Nxc4 {[%clk 0:00:07.1]} 44. Rxc6 {[%clk 0:00:09.9]} 44... Nd6 {[%clk 0:00:07.6]}
45. Rc7+ {[%clk 0:00:07.8]} 45... Ke6 {[%clk 0:00:08.2]} 46. Bg2 {[%clk
0:00:07.3]} 46... Bf2 {[%clk 0:00:09]} 47. Bh3+ {[%clk 0:00:07.1]} 47... Ke5
{[%clk 0:00:09.6]} 48. Re7+ {[%clk 0:00:07.8]} 48... Kd4 {[%clk 0:00:11.1]} 49.
Re6 {[%clk 0:00:08.9]} 49... Ne4 {[%clk 0:00:08.5]} 50. Bf5 {[%clk 0:00:10.3]}
50... Nc5 {[%clk 0:00:08.4]} 51. Re2 {[%clk 0:00:09.3]} 51... Bxh4 {[%clk
0:00:08.2]} 52. b4 {[%clk 0:00:10.9]} 52... Nb7 {[%clk 0:00:07]} 53. Re4+ {[%clk
0:00:11.5]} 53... Kd5 {[%clk 0:00:05.7]} 54. Rxh4 {[%clk 0:00:13.4]} 54... Nd6
{[%clk 0:00:07.2]} 55. Bd3 {[%clk 0:00:09.8]} 55... Rxg5 {[%clk 0:00:08]} 56.
Kc3 {[%clk 0:00:11.4]} 56... Rg3 {[%clk 0:00:08.7]} 57. a4 {[%clk 0:00:10.4]}
57... a6 {[%clk 0:00:08.5]} 58. Rh5+ {[%clk 0:00:10.1]} 58... Kc6 {[%clk
0:00:10]} 59. Rh6 {[%clk 0:00:11.1]} 59... Kc7 {[%clk 0:00:11.4]} 60. Rh7+
{[%clk 0:00:11.2]} 60... Kc6 {[%clk 0:00:12.9]} 61. Rh6 {[%clk 0:00:12.5]} 61...
Kd5 {[%clk 0:00:14.4]} 62. Rh5+ {[%clk 0:00:12.1]} 62... Kc6 {[%clk 0:00:15.9]}
63. Re5 {[%clk 0:00:11.2]} 63... Rh3 {[%clk 0:00:13]} 64. Kc2 {[%clk 0:00:10.7]}
64... Rh2+ {[%clk 0:00:14.3]} 65. Be2 {[%clk 0:00:12.1]} 65... Nc4 {[%clk
0:00:13.5]} 66. Re8 {[%clk 0:00:11.8]} 66... Nd6 {[%clk 0:00:08.6]} 67. Re7
{[%clk 0:00:11.7]} 67... Kd5 {[%clk 0:00:08.6]} 68. Kd1 {[%clk 0:00:12]} 68...
Rh1+ {[%clk 0:00:07.7]} 69. Kd2 {[%clk 0:00:12.7]} 69... Ne4+ {[%clk 0:00:08.3]}
70. Ke3 {[%clk 0:00:12.4]} 70... Rh3+ {[%clk 0:00:09.6]} 71. Kf4 {[%clk
0:00:12]} 71... Nc3 {[%clk 0:00:09.9]} 72. Bf3+ {[%clk 0:00:05]} 72... Kc4
{[%clk 0:00:10.9]} 73. a5 {[%clk 0:00:06.1]} 73... b5 {[%clk 0:00:10.9]} 74. Bb7
{[%clk 0:00:03.3]} 74... Kxb4 {[%clk 0:00:11.3]} 75. Bxa6 {[%clk 0:00:04.2]}
75... Nd5+ {[%clk 0:00:12.7]} 76. Kg4 {[%clk 0:00:04.9]} 76... Rh6 {[%clk
0:00:12.6]} 77. Re5 {[%clk 0:00:04.1]} 77... Rxa6 {[%clk 0:00:08.6]} 78. Rxd5
{[%clk 0:00:05.3]} 78... Kxa5 {[%clk 0:00:10.2]} 79. Kf4 {[%clk 0:00:06.6]}
79... Re6 {[%clk 0:00:11.6]} 80. Rd3 {[%clk 0:00:04.3]} 80... b4 {[%clk
0:00:12.5]} 81. Rd5+ {[%clk 0:00:05]} 81... Ka4 {[%clk 0:00:13.5]} 82. Rd8
{[%clk 0:00:05.8]} 82... Ka3 {[%clk 0:00:13.6]} 83. Ra8+ {[%clk 0:00:06]} 83...
Kb2 {[%clk 0:00:14.5]} 84. Kf5 {[%clk 0:00:07.9]} 84... Re1 {[%clk 0:00:14.6]}
85. Kf4 {[%clk 0:00:09]} 85... b3 {[%clk 0:00:15.9]} 86. Kf3 {[%clk 0:00:10.6]}
86... Kc2 {[%clk 0:00:17.1]} 87. Kf2 {[%clk 0:00:11.2]} 87... Re5 {[%clk
0:00:18.3]} 88. Rc8+ {[%clk 0:00:12.2]} 88... Kb1 {[%clk 0:00:19.3]} 89. Rb8
{[%clk 0:00:12.5]} 89... b2 {[%clk 0:00:20.8]} 90. Rb7 {[%clk 0:00:12.7]} 90...
Kc2 {[%clk 0:00:21.6]} 91. Rc7+ {[%clk 0:00:13.6]} 91... Kb3 {[%clk 0:00:23]}
92. Rb7+ {[%clk 0:00:10.6]} 92... Kc3 {[%clk 0:00:24.3]} 93. Rb8 {[%clk
0:00:10.8]} 93... Re4 {[%clk 0:00:22.8]} 0-1

[Event "*** Titled Tuesday Blitz"]
[Site "Chess.com"]
[Date "2019.10.01"]
[Round "9"]
[White "j_coca"]
[Black "Orest_Vovk"]
[Result "0-1"]
[WhiteElo "2122"]
[BlackElo "2417"]
[TimeControl "180+2"]
[EndTime "15:05:37 PDT"]
[Termination "Orest_Vovk won by resignation"]

1. f4 {[%clk 0:03:01.9]} 1... d5 {[%clk 0:02:58.1]} 2. Nf3 {[%clk 0:03:02.9]}
2... c6 {[%clk 0:02:58.4]} 3. e3 {[%clk 0:03:02.1]} 3... Nf6 {[%clk 0:02:59.8]}
4. d4 {[%clk 0:03:03.8]} 4... Bf5 {[%clk 0:03:00.3]} 5. c3 {[%clk 0:03:04.9]}
5... e6 {[%clk 0:03:01.8]} 6. Bd3 {[%clk 0:03:05.9]} 6... Be7 {[%clk 0:03:01.8]}
7. O-O {[%clk 0:03:06.4]} 7... O-O {[%clk 0:03:02.2]} 8. Qc2 {[%clk 0:03:07.6]}
8... Bxd3 {[%clk 0:03:01.6]} 9. Qxd3 {[%clk 0:03:09.5]} 9... Ne4 {[%clk
0:03:03.2]} 10. Nbd2 {[%clk 0:03:10.4]} 10... f5 {[%clk 0:03:05.1]} 11. Ne5
{[%clk 0:03:10.9]} 11... Nd7 {[%clk 0:03:05.5]} 12. g4 {[%clk 0:03:08.9]} 12...
Nxe5 {[%clk 0:03:05.9]} 13. fxe5 {[%clk 0:03:10.6]} 13... Nxd2 {[%clk
0:03:05.6]} 14. Bxd2 {[%clk 0:03:11]} 14... fxg4 {[%clk 0:03:06.7]} 15. Rxf8+
{[%clk 0:03:11.9]} 15... Bxf8 {[%clk 0:03:07.8]} 16. Rf1 {[%clk 0:03:13.4]}
16... Qh4 {[%clk 0:03:06.4]} 17. Be1 {[%clk 0:03:13.2]} 17... Qh3 {[%clk
0:03:05.1]} 18. Bg3 {[%clk 0:03:14]} 18... Be7 {[%clk 0:03:05.2]} 19. e4 {[%clk
0:03:13.9]} 19... h5 {[%clk 0:02:54.6]} 20. exd5 {[%clk 0:03:12.7]} 20... h4
{[%clk 0:02:55.7]} 21. Qg6 {[%clk 0:03:09.2]} 21... hxg3 {[%clk 0:02:53.1]} 22.
Rf7 {[%clk 0:03:00.9]} 22... Qxh2+ {[%clk 0:02:50.7]} 23. Kf1 {[%clk 0:03:01.1]}
23... g2+ {[%clk 0:02:51.8]} 0-1

[Event "*** Titled Tuesday Blitz"]
[Site "Chess.com"]
[Date "2019.10.01"]
[Round "9"]
[White "parmupill123"]
[Black "moro182"]
[Result "0-1"]
[WhiteElo "2534"]
[BlackElo "2737"]
[TimeControl "180+2"]
[EndTime "15:06:12 PDT"]
[Termination "moro182 won by resignation"]

1. e4 {[%clk 0:03:01.9]} 1... e5 {[%clk 0:03:00.4]} 2. Nf3 {[%clk 0:03:02.3]}
2... Nc6 {[%clk 0:03:01.8]} 3. Bc4 {[%clk 0:03:03.3]} 3... Bc5 {[%clk
0:03:02.5]} 4. O-O {[%clk 0:03:03.1]} 4... Nf6 {[%clk 0:03:03.7]} 5. d4 {[%clk
0:03:04.2]} 5... Bxd4 {[%clk 0:03:05.6]} 6. Nxd4 {[%clk 0:03:04.9]} 6... Nxd4
{[%clk 0:03:07.5]} 7. f4 {[%clk 0:03:06.1]} 7... d6 {[%clk 0:03:08.7]} 8. fxe5
{[%clk 0:03:07.4]} 8... dxe5 {[%clk 0:03:10.6]} 9. Bg5 {[%clk 0:03:08.8]} 9...
Qe7 {[%clk 0:03:11.4]} 10. Na3 {[%clk 0:03:06.2]} 10... Be6 {[%clk 0:03:12.5]}
11. c3 {[%clk 0:03:04.9]} 11... Bxc4 {[%clk 0:03:13.5]} 12. Nxc4 {[%clk
0:03:06.8]} 12... Ne6 {[%clk 0:03:11.3]} 13. Bxf6 {[%clk 0:03:08]} 13... Qc5+
{[%clk 0:03:03.1]} 14. Kh1 {[%clk 0:03:07.6]} 14... Qxc4 {[%clk 0:03:04.4]} 15.
Bxe5 {[%clk 0:03:08.6]} 15... Qxe4 {[%clk 0:02:49.1]} 16. Bxc7 {[%clk
0:02:53.5]} 16... O-O {[%clk 0:02:44.6]} 17. Bg3 {[%clk 0:02:42.8]} 17... Rad8
{[%clk 0:02:42.8]} 18. Qb3 {[%clk 0:02:40.8]} 18... Rd2 {[%clk 0:02:40.2]} 19.
Rf2 {[%clk 0:02:41.1]} 19... Rxf2 {[%clk 0:02:41.2]} 20. Bxf2 {[%clk 0:02:41.6]}
20... Nf4 {[%clk 0:02:42.2]} 21. Rg1 {[%clk 0:02:30.2]} 21... Nh3 {[%clk
0:02:42.6]} 0-1

[Event "*** Titled Tuesday Blitz"]
[Site "Chess.com"]
[Date "2019.10.01"]
[Round "9"]
[White "beccrajoy"]
[Black "Aggressus"]
[Result "0-1"]
[WhiteElo "1806"]
[BlackElo "2371"]
[TimeControl "180+2"]
[EndTime "15:06:31 PDT"]
[Termination "Aggressus won by resignation"]

1. e4 {[%clk 0:03:01.9]} 1... c5 {[%clk 0:03:00.8]} 2. Nf3 {[%clk 0:03:02.4]}
2... Nc6 {[%clk 0:03:01.9]} 3. d4 {[%clk 0:03:03.9]} 3... cxd4 {[%clk
0:03:03.8]} 4. Nxd4 {[%clk 0:03:05.5]} 4... Nf6 {[%clk 0:03:04.3]} 5. Nc3 {[%clk
0:03:04.9]} 5... e5 {[%clk 0:03:04.9]} 6. Ndb5 {[%clk 0:03:05.4]} 6... d6 {[%clk
0:03:06.1]} 7. Bg5 {[%clk 0:03:02.5]} 7... a6 {[%clk 0:03:07.3]} 8. Na3 {[%clk
0:03:03.4]} 8... b5 {[%clk 0:03:08.5]} 9. Bxf6 {[%clk 0:03:04.2]} 9... gxf6
{[%clk 0:03:09.1]} 10. Nd5 {[%clk 0:03:05.4]} 10... Bg7 {[%clk 0:03:10.5]} 11.
Bxb5 {[%clk 0:03:04.7]} 11... axb5 {[%clk 0:03:10]} 12. Nxb5 {[%clk 0:03:06.4]}
12... O-O {[%clk 0:03:10.4]} 13. c3 {[%clk 0:02:53.8]} 13... f5 {[%clk
0:03:06.5]} 14. Nbc7 {[%clk 0:02:46.1]} 14... Rb8 {[%clk 0:03:01.9]} 15. b4
{[%clk 0:02:43.3]} 15... fxe4 {[%clk 0:02:59]} 16. b5 {[%clk 0:02:41.8]} 16...
Ne7 {[%clk 0:02:58.4]} 17. a4 {[%clk 0:02:33.6]} 17... Be6 {[%clk 0:02:54]} 18.
Nxe6 {[%clk 0:02:25.5]} 18... fxe6 {[%clk 0:02:54.3]} 19. Nxe7+ {[%clk
0:02:23.8]} 19... Qxe7 {[%clk 0:02:54.8]} 20. Qb3 {[%clk 0:02:19.2]} 20... d5
{[%clk 0:02:53.7]} 21. a5 {[%clk 0:02:18.3]} 21... Qc5 {[%clk 0:02:54]} 22. O-O
{[%clk 0:02:11.2]} 22... Rxb5 {[%clk 0:02:53.3]} 0-1

[Event "*** Titled Tuesday Blitz"]
[Site "Chess.com"]
[Date "2019.10.01"]
[Round "9"]
[White "Alex_32167"]
[Black "morphinho22"]
[Result "1-0"]
[WhiteElo "2623"]
[BlackElo "2353"]
[TimeControl "180+2"]
[EndTime "15:06:45 PDT"]
[Termination "Alex_32167 won by resignation"]

1. e4 {[%clk 0:03:00.3]} 1... c5 {[%clk 0:02:58.1]} 2. Nf3 {[%clk 0:03:01.1]}
2... d6 {[%clk 0:02:59.6]} 3. d4 {[%clk 0:03:00.8]} 3... cxd4 {[%clk 0:03:01.5]}
4. Nxd4 {[%clk 0:03:02.2]} 4... Nf6 {[%clk 0:03:02.8]} 5. Bd3 {[%clk 0:03:03.1]}
5... a6 {[%clk 0:02:59.9]} 6. c4 {[%clk 0:03:04]} 6... e6 {[%clk 0:02:57.8]} 7.
O-O {[%clk 0:03:04.5]} 7... Be7 {[%clk 0:02:57.8]} 8. b3 {[%clk 0:03:05.5]} 8...
Nc6 {[%clk 0:02:55.1]} 9. Bb2 {[%clk 0:03:06.4]} 9... O-O {[%clk 0:02:55.2]} 10.
Nd2 {[%clk 0:03:07.1]} 10... Nxd4 {[%clk 0:02:18.6]} 11. Bxd4 {[%clk 0:03:07.5]}
11... d5 {[%clk 0:02:20.2]} 12. cxd5 {[%clk 0:03:04.5]} 12... exd5 {[%clk
0:02:21.5]} 13. e5 {[%clk 0:03:06.4]} 13... Nd7 {[%clk 0:02:11.6]} 14. f4 {[%clk
0:03:03.1]} 14... Nc5 {[%clk 0:02:12.2]} 15. Bc2 {[%clk 0:03:01.1]} 15... g6
{[%clk 0:02:06.8]} 16. f5 {[%clk 0:02:59.1]} 16... Re8 {[%clk 0:01:48.3]} 17. e6
{[%clk 0:02:55.3]} 17... fxe6 {[%clk 0:01:39.5]} 18. fxg6 {[%clk 0:02:55.5]} 1-0

[Event "*** Titled Tuesday Blitz"]
[Site "Chess.com"]
[Date "2019.10.01"]
[Round "9"]
[White "chessS1r"]
[Black "Keaton87"]
[Result "0-1"]
[WhiteElo "2473"]
[BlackElo "2591"]
[TimeControl "180+2"]
[EndTime "15:06:52 PDT"]
[Termination "Keaton87 won by resignation"]

1. d4 {[%clk 0:03:01.9]} 1... Nf6 {[%clk 0:03:00.9]} 2. c4 {[%clk 0:03:01.1]}
2... g6 {[%clk 0:03:02]} 3. g3 {[%clk 0:03:02.3]} 3... Bg7 {[%clk 0:03:02]} 4.
Bg2 {[%clk 0:03:03.8]} 4... d5 {[%clk 0:03:03.3]} 5. cxd5 {[%clk 0:03:04.4]}
5... Nxd5 {[%clk 0:03:04]} 6. e4 {[%clk 0:03:06.1]} 6... Nb6 {[%clk 0:03:04.9]}
7. Ne2 {[%clk 0:03:07.7]} 7... O-O {[%clk 0:03:05.3]} 8. O-O {[%clk 0:03:06.2]}
8... Nc6 {[%clk 0:03:04.9]} 9. d5 {[%clk 0:03:04.7]} 9... Na5 {[%clk 0:03:06]}
10. Nbc3 {[%clk 0:03:04.4]} 10... c6 {[%clk 0:03:07.2]} 11. b3 {[%clk
0:02:56.2]} 11... cxd5 {[%clk 0:03:06.9]} 12. exd5 {[%clk 0:02:58.1]} 12... Bg4
{[%clk 0:03:03.5]} 13. Bb2 {[%clk 0:02:50.6]} 13... Rc8 {[%clk 0:03:01.1]} 14.
f3 {[%clk 0:02:45.1]} 14... Bf5 {[%clk 0:02:56.6]} 15. Qd2 {[%clk 0:02:43.8]}
15... Nxd5 {[%clk 0:02:47.6]} 16. Qxd5 {[%clk 0:02:30.5]} 16... Qxd5 {[%clk
0:02:45.2]} 17. Nxd5 {[%clk 0:02:32.4]} 17... Bxb2 {[%clk 0:02:46]} 18. Nxe7+
{[%clk 0:02:33.4]} 18... Kg7 {[%clk 0:02:38.2]} 19. Nxf5+ {[%clk 0:02:29.5]}
19... gxf5 {[%clk 0:02:38.6]} 20. Rab1 {[%clk 0:02:30.6]} 20... Rc2 {[%clk
0:02:39.3]} 21. Rf2 {[%clk 0:02:28.6]} 21... Re8 {[%clk 0:02:33.7]} 22. Nf4
{[%clk 0:02:21.3]} 22... Bd4 {[%clk 0:02:32.8]} 23. Nh3 {[%clk 0:02:06.7]} 23...
Ree2 {[%clk 0:02:28.8]} 0-1

[Event "*** Titled Tuesday Blitz"]
[Site "Chess.com"]
[Date "2019.10.01"]
[Round "9"]
[White "yuki_chess123"]
[Black "Grebeniuk-S"]
[Result "0-1"]
[WhiteElo "2199"]
[BlackElo "2494"]
[TimeControl "180+2"]
[EndTime "15:06:55 PDT"]
[Termination "Grebeniuk-S won by resignation"]

1. Nf3 {[%clk 0:02:59.7]} 1... f5 {[%clk 0:02:58.9]} 2. e4 {[%clk 0:02:59.5]}
2... fxe4 {[%clk 0:02:59.8]} 3. Ng5 {[%clk 0:03:00.2]} 3... Nf6 {[%clk
0:03:00.4]} 4. d3 {[%clk 0:03:01.1]} 4... e5 {[%clk 0:02:59.8]} 5. Nxe4 {[%clk
0:02:54.9]} 5... Nc6 {[%clk 0:02:58.5]} 6. Bg5 {[%clk 0:02:45.9]} 6... Be7
{[%clk 0:02:59]} 7. Bxf6 {[%clk 0:02:45.1]} 7... Bxf6 {[%clk 0:03:00]} 8. Nbc3
{[%clk 0:02:40.2]} 8... O-O {[%clk 0:03:00.6]} 9. Be2 {[%clk 0:02:40.2]} 9... d5
{[%clk 0:03:00.8]} 10. Ng3 {[%clk 0:02:36.2]} 10... Nd4 {[%clk 0:02:52.4]} 11.
O-O {[%clk 0:02:36.6]} 11... c6 {[%clk 0:02:52.1]} 12. Re1 {[%clk 0:02:35.8]}
12... Nxe2+ {[%clk 0:02:41.6]} 13. Qxe2 {[%clk 0:02:34.5]} 13... Qb6 {[%clk
0:02:41.5]} 14. Rab1 {[%clk 0:02:28.8]} 14... Bd7 {[%clk 0:02:42.5]} 15. Nd1
{[%clk 0:02:24.4]} 15... g6 {[%clk 0:02:37.6]} 16. Qe3 {[%clk 0:02:19.3]} 16...
Qc7 {[%clk 0:02:35.4]} 17. c4 {[%clk 0:02:14.4]} 17... Bg7 {[%clk 0:02:28.8]}
18. cxd5 {[%clk 0:02:11.5]} 18... cxd5 {[%clk 0:02:30.7]} 19. Rc1 {[%clk
0:02:11.9]} 19... Qa5 {[%clk 0:02:25.1]} 20. Qc5 {[%clk 0:01:58.4]} 20... Qxe1+
{[%clk 0:02:24.6]} 0-1

[Event "*** Titled Tuesday Blitz"]
[Site "Chess.com"]
[Date "2019.10.01"]
[Round "9"]
[White "TheFireChess"]
[Black "VincentKeymer"]
[Result "1-0"]
[WhiteElo "2520"]
[BlackElo "2597"]
[TimeControl "180+2"]
[EndTime "15:07:03 PDT"]
[Termination "TheFireChess won by checkmate"]

1. e4 {[%clk 0:03:01.9]} 1... c5 {[%clk 0:03:00.3]} 2. c3 {[%clk 0:03:02.8]}
2... Nf6 {[%clk 0:03:00.6]} 3. e5 {[%clk 0:03:04.1]} 3... Nd5 {[%clk 0:03:01.9]}
4. Nf3 {[%clk 0:03:06]} 4... d6 {[%clk 0:03:02.7]} 5. Bc4 {[%clk 0:03:06.9]}
5... Nb6 {[%clk 0:03:01.8]} 6. Bb3 {[%clk 0:02:35.6]} 6... Nc6 {[%clk
0:03:00.9]} 7. exd6 {[%clk 0:02:35.3]} 7... Qxd6 {[%clk 0:03:01.4]} 8. O-O
{[%clk 0:02:36.9]} 8... Be6 {[%clk 0:03:02.1]} 9. Re1 {[%clk 0:02:37.1]} 9...
Bxb3 {[%clk 0:03:02.7]} 10. axb3 {[%clk 0:02:39]} 10... e6 {[%clk 0:02:57.3]}
11. Na3 {[%clk 0:02:39.8]} 11... Be7 {[%clk 0:02:57.8]} 12. Qc2 {[%clk
0:02:40.9]} 12... O-O {[%clk 0:02:57.2]} 13. d3 {[%clk 0:02:40.9]} 13... Rad8
{[%clk 0:02:52.8]} 14. Rd1 {[%clk 0:02:42]} 14... a6 {[%clk 0:02:52]} 15. Be3
{[%clk 0:02:35.3]} 15... Nd5 {[%clk 0:02:49.3]} 16. Nc4 {[%clk 0:02:34.7]} 16...
Qc7 {[%clk 0:02:49.4]} 17. Bg5 {[%clk 0:02:30.2]} 17... Bxg5 {[%clk 0:02:41.5]}
18. Nxg5 {[%clk 0:02:32.1]} 18... b5 {[%clk 0:02:29.1]} 19. Nd2 {[%clk
0:01:54.1]} 19... a5 {[%clk 0:02:28.1]} 20. d4 {[%clk 0:01:46]} 20... cxd4
{[%clk 0:02:26.5]} 21. Qxh7# {[%clk 0:01:45.5]} 1-0

[Event "*** Titled Tuesday Blitz"]
[Site "Chess.com"]
[Date "2019.10.01"]
[Round "9"]
[White "GHANDEEVAM2003"]
[Black "Keranke"]
[Result "0-1"]
[WhiteElo "2967"]
[BlackElo "2821"]
[TimeControl "180+2"]
[EndTime "15:07:09 PDT"]
[Termination "Keranke won by resignation"]

1. b3 {[%clk 0:03:01.9]} 1... e5 {[%clk 0:03:00.2]} 2. Bb2 {[%clk 0:03:03.2]}
2... Nc6 {[%clk 0:03:01]} 3. e3 {[%clk 0:03:04.5]} 3... Nf6 {[%clk 0:03:02]} 4.
Nf3 {[%clk 0:03:05.2]} 4... e4 {[%clk 0:03:02.4]} 5. Nd4 {[%clk 0:03:05.8]} 5...
Nxd4 {[%clk 0:02:57.3]} 6. Bxd4 {[%clk 0:03:07.7]} 6... d5 {[%clk 0:02:58.9]} 7.
c4 {[%clk 0:03:05.1]} 7... dxc4 {[%clk 0:02:44.7]} 8. Bxc4 {[%clk 0:03:04.6]}
8... Bd6 {[%clk 0:02:46.2]} 9. Nc3 {[%clk 0:03:00]} 9... Bf5 {[%clk 0:02:45.1]}
10. f3 {[%clk 0:02:12.7]} 10... O-O {[%clk 0:02:36.3]} 11. g4 {[%clk 0:02:10.8]}
11... Nxg4 {[%clk 0:02:19.8]} 12. fxg4 {[%clk 0:02:06.8]} 12... Qh4+ {[%clk
0:02:20.6]} 13. Kf1 {[%clk 0:02:08.2]} 13... Bxg4 {[%clk 0:02:19.3]} 14. Ne2
{[%clk 0:01:50.5]} 14... Bh3+ {[%clk 0:02:08]} 15. Kg1 {[%clk 0:01:51]} 15...
Qg5+ {[%clk 0:02:09.5]} 0-1

[Event "*** Titled Tuesday Blitz"]
[Site "Chess.com"]
[Date "2019.10.01"]
[Round "9"]
[White "HouseOfDurin"]
[Black "Perecke"]
[Result "1-0"]
[WhiteElo "2092"]
[BlackElo "2079"]
[TimeControl "180+2"]
[EndTime "15:08:02 PDT"]
[Termination "HouseOfDurin won by resignation"]

1. d4 {[%clk 0:03:01.9]} 1... d5 {[%clk 0:02:59.5]} 2. Bg5 {[%clk 0:03:02.7]}
2... f6 {[%clk 0:02:57.1]} 3. Bh4 {[%clk 0:03:03.4]} 3... Nh6 {[%clk 0:02:54.6]}
4. f3 {[%clk 0:03:00.7]} 4... Nf5 {[%clk 0:02:49.3]} 5. Bf2 {[%clk 0:03:01.1]}
5... e5 {[%clk 0:02:50.4]} 6. dxe5 {[%clk 0:02:53.7]} 6... fxe5 {[%clk
0:02:49.5]} 7. e4 {[%clk 0:02:54.6]} 7... dxe4 {[%clk 0:02:44.8]} 8. Qxd8+
{[%clk 0:02:56.5]} 8... Kxd8 {[%clk 0:02:46.5]} 9. fxe4 {[%clk 0:02:57]} 9...
Nd6 {[%clk 0:02:47.8]} 10. Nc3 {[%clk 0:02:50.8]} 10... Nc6 {[%clk 0:02:34.2]}
11. O-O-O {[%clk 0:02:47.2]} 11... Be6 {[%clk 0:02:30.6]} 12. Nf3 {[%clk
0:02:45.8]} 12... Be7 {[%clk 0:02:27.6]} 13. Bb5 {[%clk 0:02:38.6]} 13... Bf6
{[%clk 0:02:24.8]} 14. Bxc6 {[%clk 0:02:36.2]} 14... bxc6 {[%clk 0:02:26.7]} 15.
Bg3 {[%clk 0:02:28.4]} 15... Bg4 {[%clk 0:02:21.9]} 16. Rd3 {[%clk 0:02:13.1]}
16... Bxf3 {[%clk 0:02:07.4]} 17. gxf3 {[%clk 0:02:14]} 17... Ke7 {[%clk
0:02:08.1]} 18. f4 {[%clk 0:01:53.4]} 18... exf4 {[%clk 0:02:02.2]} 19. Bxf4
{[%clk 0:01:55.3]} 19... Ke6 {[%clk 0:01:57.8]} 20. e5 {[%clk 0:01:39.9]} 20...
Bxe5 {[%clk 0:01:58.9]} 21. Re1 {[%clk 0:01:34.4]} 21... Nf7 {[%clk 0:01:56.8]}
22. Bxe5 {[%clk 0:01:26.6]} 22... Nxe5 {[%clk 0:01:57.6]} 23. Rde3 {[%clk
0:01:27.9]} 1-0